bitfinex/quotes_ETHUSD_20240823
["timestamp","ask_amount","ask_price","bid_price","bid_amount"]
[1724441852616,9.9168,2744.3,2743.6,3.64471]
[1724441852850,0.03537961,2744.1,2743.6,3.64471]
[1724441853063,0.03548113,2744.2,2743.6,3.64471]
[1724441853247,9.9168,2744.3,2743.6,3.64471]
[1724441853643,0.03548113,2744.2,2743.6,3.64471]
[1724441853837,9.9168,2744.3,2743.6,3.64471]
[1724441854012,0.03537961,2744.1,2743.6,3.64471]
[1724441854474,4.24631024,2744.1,2743.1,9.6999]
[1724441854678,9.6891,2743.7,2742.8,0.79098383]
[1724441854837,1.39354102,2743.6,2742.8,3.6779578]
[1724441855020,1.42861428,2743.6,2742.8,3.6779578]
[1724441855435,13.85191024,2743.5,2742.8,0.0321278]
[1724441858020,9.4654,2743.4,2742.8,0.0321278]
[1724441858767,0.03430456,2743.3,2742.8,0.0321278]
[1724441858973,0.94997046,2743.2,2742.8,0.0321278]
[1724441859123,0.98417345,2743.2,2742.8,0.0321278]
[1724441861280,14.13631024,2743.1,2742.8,0.0321278]
[1724441861503,9.89,2743.1,2742.8,0.0321278]
[1724441861650,0.03312401,2743.0,2742.8,0.0321278]
[1724441863662,9.3896,2743.4,2742.8,0.0321278]
[1724441863865,0.03332441,2742.9,2742.8,0.0321278]
[1724441864069,9.3896,2743.4,2742.8,0.0321278]
[1724441864265,10.62856,2743.4,2742.8,0.0321278]
[1724441866601,0.03346332,2743.3,2742.8,0.0321278]
[1724441872184,10.62856,2743.4,2742.8,0.0321278]
[1724441872646,9.42378197,2743.4,2742.8,0.0321278]
[1724441872818,9.42378197,2743.4,2742.8,3.6779578]
[1724441873312,9.42378197,2743.4,2742.9,0.07290766]
[1724441873474,3.0,2743.5,2742.8,3.6779578]
[1724441873817,9.3124,2743.6,2742.9,0.07290707]
[1724441873985,3.0,2743.5,2742.9,0.07290707]
[1724441874519,3.0,2743.5,2742.8,0.0321278]
[1724441874820,4.65587102,2743.5,2742.8,0.0321278]
[1724441878287,3.0,2743.5,2742.8,0.0321278]
[1724441880006,3.0,2743.5,2742.8,0.10503458]
[1724441880448,13.50521024,2744.0,2742.9,9.3406]
[1724441880759,9.2589,2744.0,2743.1,3.64549]
[1724441881155,9.2589,2744.0,2743.1,3.64544]
[1724441881317,9.2589,2744.0,2743.3,9.347]
[1724441881515,4.24631024,2744.3,2743.3,9.347]
[1724441881516,9.33,2744.2,2743.3,9.347]
[1724441882072,9.33,2744.2,2743.3,12.9922]
[1724441882266,4.24631024,2744.6,2743.4,3.64501]
[1724441882267,9.33,2744.5,2743.4,3.64501]
[1724441882431,9.33,2744.5,2743.6,3.64484]
[1724441882634,9.33,2744.5,2743.7,9.347]
[1724441883988,9.9432,2744.8,2743.7,12.99169]
[1724441884187,9.97746043,2744.8,2743.7,12.99169]
[1724441884893,9.97746043,2744.8,2743.8,3.71743789]
[1724441885393,9.9432,2744.8,2743.8,3.71743789]
[1724441886412,9.9432,2744.8,2743.9,12.67559]
[1724441886607,3.0,2745.0,2744.3,3.64388]
[1724441886805,9.6009,2745.4,2744.2,9.0312]
[1724441887092,0.03343618,2744.9,2744.3,12.67508]
[1724441887294,10.98562102,2745.4,2744.3,9.0312]
[1724441887588,4.24631024,2745.2,2743.9,3.6444]
[1724441887888,4.24631024,2745.2,2744.0,9.0312]
[1724441887889,9.63457642,2745.1,2744.0,9.0312]
[1724441890394,9.63457642,2745.1,2744.1,3.64405]
[1724441890851,9.63457642,2745.1,2744.0,9.0312]
[1724441892845,9.11,2744.8,2743.8,9.3673]
[1724441893125,4.24631024,2744.6,2743.8,9.3673]
[1724441893249,4.24631024,2744.6,2743.5,13.01215]
[1724441893650,9.4695,2744.5,2743.5,13.01215]
[1724441893956,10.84108102,2744.5,2743.5,13.01215]
[1724441894184,0.03262612,2744.4,2743.5,13.01215]
[1724441894963,0.03262612,2744.4,2743.6,3.64484]
[1724441895212,0.03262612,2744.4,2743.7,3.64471]
[1724441895396,0.03262612,2744.4,2743.5,9.3673]
[1724441895592,9.8358,2744.2,2743.3,3.64522]
[1724441895792,0.03189192,2744.1,2743.3,7.29031]
[1724441896007,9.8358,2744.2,2743.3,3.64515]
[1724441896897,9.8358,2744.2,2743.2,9.9075]
[1724441897102,9.8358,2744.2,2743.2,13.55285]
[1724441897303,11.24401102,2744.2,2743.2,9.9075]
[1724441897504,9.0841,2743.8,2743.1,3.64539]
[1724441897848,9.11605916,2743.8,2743.1,3.64539]
[1724441898766,9.0841,2743.8,2743.1,3.64539]
[1724441900301,13.91901024,2744.2,2743.3,13.15269]
[1724441900593,14.48446237,2744.2,2743.3,13.15269]
[1724441900758,14.48446237,2744.2,2743.3,9.5075]
[1724441901201,0.03253477,2744.1,2743.3,9.5075]
[1724441901556,14.48446237,2744.2,2743.3,9.5075]
[1724441901979,14.48446237,2744.2,2743.3,13.15274]
[1724441903209,9.6727,2744.2,2743.5,3.6449]
[1724441903862,9.6176,2744.5,2743.6,3.64472]
[1724441904103,3.0,2744.4,2743.6,3.64472]
[1724441904256,3.0,2744.4,2743.3,13.15269]
[1724441904257,3.03273821,2744.4,2743.3,13.15269]
[1724441904459,3.0,2744.4,2743.4,3.6451]
[1724441904711,4.68639102,2744.4,2743.3,13.15269]
[1724441904905,4.68639102,2744.4,2743.3,16.79785]
[1724441905061,4.68639102,2744.4,2743.3,16.7978]
[1724441905263,4.68639102,2744.4,2743.3,13.15265]
[1724441905710,4.68639102,2744.4,2743.4,3.64503]
[1724441906404,3.0,2744.4,2743.3,13.15265]
[1724441906649,9.6176,2744.3,2743.3,9.5075]
[1724441910131,9.6176,2744.3,2743.3,13.15273]
[1724441910862,9.6176,2744.3,2743.3,9.5075]
[1724441911034,13.86391024,2744.3,2743.3,9.5075]
[1724441911240,9.5387,2744.2,2743.1,9.0688]
[1724441911535,3.0,2744.1,2743.1,9.0688]
[1724441911719,4.67850102,2744.1,2743.1,9.0688]
[1724441912541,4.67850102,2744.1,2743.1,12.7143]
[1724441912839,4.67850102,2744.1,2743.1,12.71423]
[1724441913207,3.0,2744.1,2743.1,12.71423]
[1724441914034,3.0,2744.1,2743.1,9.0688]
[1724441914231,9.5387,2744.2,2743.4,3.6451]
[1724441914430,4.24631024,2744.6,2743.5,9.2511]
[1724441914431,12.4133,2744.5,2743.5,9.2511]
[1724441914744,9.4133,2744.5,2743.7,3.64468]
[1724441914944,9.4133,2744.5,2743.8,0.0728796]
[1724441915271,9.4133,2745.1,2743.9,12.96834648]
[1724441915542,9.4133,2745.1,2743.9,13.44548]
[1724441915697,9.4133,2745.1,2743.9,9.2511]
[1724441916704,4.24631024,2744.9,2743.7,13.2274]
[1724441917035,9.5032,2744.8,2743.7,13.2274]
[1724441917346,9.5032,2744.8,2743.8,3.64456]
[1724441917788,9.5032,2744.8,2743.7,13.22731]
[1724441919029,9.5908,2744.7,2743.5,10.44]
[1724441919239,9.5908,2744.5,2743.5,10.44]
[1724441919393,13.83711024,2744.5,2743.4,9.2558]
[1724441919619,9.2477,2744.4,2743.2,3.64529]
[1724441919925,9.2477,2744.4,2743.2,3.64528]
[1724441920128,1.34940102,2744.3,2743.2,3.64528]
[1724441920830,1.34940102,2744.3,2743.3,3.64516]
[1724441922462,9.8256,2744.2,2743.3,3.64516]
[1724441923446,9.8256,2744.2,2743.3,7.29031]
[1724441923959,9.8256,2744.2,2743.3,7.2903]
[1724441924421,9.8256,2744.2,2743.4,3.64506]
[1724441925991,9.8256,2744.2,2743.3,3.64515]
[1724441926372,9.8256,2744.2,2743.4,3.64498]
[1724441926567,9.8256,2744.2,2743.3,3.64515]
[1724441926568,9.8256,2744.2,2743.3,7.29029]
[1724441927075,9.8256,2744.2,2743.4,3.64509]
[1724441927301,1.1175001,2744.1,2743.3,3.64514]
[1724441928388,1.1175001,2744.1,2743.4,3.6451]
[1724441929779,9.8256,2744.2,2743.5,3.64489]
[1724441930455,3.0,2744.7,2744.0,3.64429]
[1724441930796,9.6006,2744.6,2743.9,3.64434]
[1724441931273,4.24631024,2744.1,2743.4,0.75885603]
[1724441931440,9.6006,2744.0,2743.0,3.64554]
[1724441931645,10.98529102,2744.0,2743.0,3.64554]
[1724441932089,10.98529102,2744.0,2743.1,3.6455]
[1724441933331,10.98529102,2744.0,2743.0,7.2911]
[1724441933698,10.98529102,2744.0,2743.0,3.64554]
[1724441933895,10.98529102,2744.0,2743.0,7.2911]
[1724441934110,10.98529102,2744.0,2743.1,3.64549]
[1724441935042,10.98529102,2744.0,2743.0,3.64554]
[1724441935246,10.98529102,2744.0,2742.8,0.37258709]
[1724441935247,4.24631024,2743.2,2742.8,0.37258709]
[1724441935542,4.24631024,2743.2,2742.8,0.0321278]
[1724441935826,5.66112126,2743.2,2742.8,0.0321278]
[1724441937036,9.8264,2743.1,2742.8,0.0321278]
[1724441937216,12.8264,2743.1,2742.8,0.0321278]
[1724441937418,4.24631024,2742.9,2742.8,0.0321278]
[1724441939234,13.36001024,2742.9,2742.8,0.0321278]
[1724441941664,9.1137,2742.9,2742.8,0.0321278]
[1724441942367,10.32507,2742.9,2742.8,0.0321278]
[1724441944274,14.57138024,2742.9,2742.8,0.0321278]
[1724441944478,17.57138024,2742.9,2742.8,0.0321278]
[1724441946738,21.21715024,2742.9,2742.8,0.0321278]
[1724441946977,25.41292024,2742.9,2742.8,0.0321278]
[1724441947279,25.41292024,2742.9,2741.2,7.29591]
[1724441947280,9.2245,2742.6,2741.2,13.05773]
[1724441947479,4.24631024,2742.1,2741.2,13.05773]
[1724441947634,9.2245,2742.0,2741.2,13.05773]
[1724441949166,9.2245,2742.0,2741.2,9.4098]
[1724441949478,9.2245,2742.0,2741.0,3.64824]
[1724441949872,9.2245,2742.0,2741.0,3.64822]
[1724441950038,1.34708102,2741.9,2740.9,9.4337]
[1724441950571,9.6573,2741.8,2740.8,3.64845]
[1724441951842,4.24631024,2741.5,2740.7,0.57179328]
[1724441952076,9.6573,2741.4,2740.7,0.57179328]
[1724441952389,4.24631024,2741.2,2740.3,9.4337]
[1724441952593,0.42463102,2741.1,2740.3,9.4337]
[1724441952793,9.6573,2741.0,2740.0,13.2153878]
[1724441952946,9.6573,2741.0,2740.0,9.5658278]
[1724441953594,9.6573,2741.0,2740.0,13.2154478]
[1724441954169,9.9957,2741.3,2740.1,3.64948]
[1724441954380,1.29957,2741.2,2740.1,3.64948]
[1724441954683,9.9957,2741.1,2740.1,3.64948]
[1724441954991,4.24631024,2741.0,2740.0,9.5658278]
[1724441955687,9.9957,2741.1,2740.0,13.2154278]
[1724441955886,9.9957,2741.1,2740.1,3.64939]
[1724441956092,9.9957,2741.1,2740.3,3.64923]
[1724441956248,9.3026,2741.4,2740.5,9.7797]
[1724441958463,9.3026,2741.7,2740.8,3.64845]
[1724441958777,11.0962,2742.6,2740.9,9.7797]
[1724441958778,9.3026,2742.0,2740.9,9.7797]
[1724441959094,9.3026,2742.0,2741.0,3.72115668]
[1724441959332,9.3026,2742.0,2741.0,3.6482]
[1724441959533,10.65749102,2742.0,2741.0,3.6482]
[1724441959828,10.65749102,2742.0,2741.0,3.72115641]
[1724441960201,10.65749102,2742.0,2740.9,9.7797]
[1724441960828,10.65749102,2742.0,2741.2,3.64803]
[1724441961013,9.3026,2742.0,2741.2,3.64803]
[1724441961247,9.3026,2742.0,2741.0,3.64823]
[1724441961425,9.3026,2742.0,2740.9,13.42802]
[1724441961589,9.3026,2742.0,2740.9,9.7797]
[1724441961990,9.3026,2742.0,2740.9,13.42812]
[1724441962189,0.93026,2741.9,2740.9,13.42812]
[1724441962785,0.93026,2741.9,2741.0,3.64828]
[1724441962990,9.3026,2742.0,2741.0,3.64828]
[1724441963387,9.3026,2742.0,2740.9,13.42812]
[1724441964138,4.24631024,2741.9,2740.9,3.64842]
[1724441965463,4.24631024,2741.9,2740.9,7.29675]
[1724441965644,4.24631024,2741.9,2741.0,3.64826]
[1724441965969,9.3026,2742.0,2741.1,9.4535]
[1724441966136,9.3026,2742.0,2741.1,13.10163]
[1724441967265,9.3026,2742.0,2741.2,3.64793]
[1724441967418,9.0804,2742.3,2741.4,9.4712]
[1724441968016,9.0804,2742.3,2741.1,3.64809]
[1724441968017,9.0804,2742.1,2741.1,3.64808]
[1724441968759,9.0804,2742.1,2741.1,7.29617]
[1724441969123,9.0804,2742.1,2741.4,9.4712]
[1724441972492,9.0804,2742.1,2741.1,3.64807]
[1724441972696,13.54061024,2741.9,2740.9,3.64833]
[1724441973012,13.54061024,2741.9,2741.0,3.64828]
[1724441973609,13.54061024,2741.9,2740.9,3.64833]
[1724441973824,13.54061024,2741.9,2740.9,7.29667]
[1724441974020,13.54061024,2741.9,2740.9,7.29669]
[1724441974225,13.54061024,2741.9,2740.7,15.82202]
[1724441974226,1.35406102,2741.8,2740.7,15.82202]
[1724441974442,1.35406102,2741.8,2740.9,3.64843]
[1724441975113,1.35406102,2741.8,2740.9,7.29677]
[1724441975325,1.35406102,2741.8,2741.0,3.64828]
[1724441975633,1.35406102,2741.8,2740.9,3.64834]
[1724441976196,1.35406102,2741.8,2741.0,3.64822]
[1724441979114,1.35406102,2741.8,2740.7,12.1734]
[1724441979298,9.8931,2742.2,2741.5,3.64763]
[1724441979505,9.8931,2742.5,2741.8,3.64711]
[1724441979858,4.64318365,2743.1,2741.9,0.07293267]
[1724441979859,9.8931,2743.0,2741.9,0.07293267]
[1724441980198,9.8931,2743.0,2741.8,3.64711]
[1724441980401,1.41394102,2742.9,2741.8,3.64711]
[1724441981047,4.41394102,2742.9,2741.8,3.64711]
[1724441982669,9.2853,2742.8,2741.7,9.9622]
[1724441982889,13.53161024,2742.8,2741.7,9.9622]
[1724441983055,1.79455513,2742.7,2741.7,9.9622]
[1724441984979,1.79455513,2742.7,2741.7,13.60954]
[1724441985980,1.79455513,2742.7,2741.8,3.64721]
[1724441987579,1.79455513,2742.7,2741.7,9.9622]
[1724441987580,9.2853,2742.8,2742.2,3.64662]
[1724441988152,9.2853,2742.8,2742.0,13.14236]
[1724441988329,9.2853,2742.8,2742.0,9.4955]
[1724441988523,9.2853,2742.8,2742.0,13.14246]
[1724441989781,9.2853,2742.8,2742.1,3.64681]
[1724441990088,3.0,2743.3,2742.3,3.64646]
[1724441990089,9.0773,2743.2,2742.3,3.64646]
[1724441990383,9.0773,2743.2,2742.5,3.6463]
[1724441990568,9.0773,2743.2,2742.5,3.7192163]
[1724441991143,9.0773,2743.2,2742.5,3.64621]
[1724441991331,9.3769,2743.6,2742.5,3.64621]
[1724441992972,9.3769,2743.6,2742.7,3.64592]
[1724441993144,4.24631024,2744.3,2742.8,0.07290873]
[1724441993345,9.3769,2744.2,2743.0,13.48591]
[1724441993549,9.3769,2744.2,2743.0,9.8403]
[1724441993967,1.36232102,2744.1,2743.1,3.64541]
[1724441994146,1.36232102,2744.1,2743.0,9.8403]
[1724441995352,13.28421024,2744.0,2742.7,12.94499]
[1724441995559,13.28421024,2744.0,2742.8,3.0]
[1724441995762,9.0379,2743.9,2742.8,3.0]
[1724441996367,9.0379,2743.9,2742.8,6.64589]
[1724441996742,9.0379,2743.9,2742.8,3.0]
[1724441996940,1.32842102,2743.8,2742.8,3.0]
[1724441997143,1.32842102,2743.8,2742.8,6.6459]
[1724442000202,1.32842102,2743.8,2742.7,12.94493]
[1724442000397,1.32842102,2743.8,2742.8,3.64587]
[1724442000650,14.02101024,2743.7,2742.7,9.299]
[1724442000804,1.53494313,2743.6,2742.7,9.299]
[1724442000971,1.53494313,2743.6,2742.9,3.64569]
[1724442001406,9.7747,2743.7,2742.9,7.29137]
[1724442001698,9.7747,2743.7,2742.9,3.64568]
[1724442003408,9.7747,2743.7,2742.7,12.94493]
[1724442003707,9.7747,2743.7,2742.8,3.64581]
[1724442004014,9.7747,2743.7,2742.9,3.64576]
[1724442004193,9.7747,2743.7,2742.9,3.64567]
[1724442004402,9.7747,2743.7,2742.7,12.94498]
[1724442004609,9.7747,2743.7,2742.7,12.94496]
[1724442004806,9.7747,2743.7,2742.9,3.64577]
[1724442005180,9.7747,2743.7,2742.9,7.29138]
[1724442005383,9.7747,2743.7,2743.0,3.64562]
[1724442005618,9.3731,2744.0,2743.1,9.0621]
[1724442006020,9.3731,2744.0,2743.2,0.07289994]
[1724442006228,4.04062341,2744.5,2743.2,0.07289994]
[1724442006229,0.06322743,2744.6,2743.9,4.24631024]
[1724442006425,3.35e-06,2745.7,2745.5,3.842]
[1724442006635,5.63047423,2748.0,2746.0,3.64156]
[1724442006636,9.3731,2748.0,2746.0,3.64156]
[1724442006937,9.3731,2748.5,2747.1,3.64009]
[1724442007100,9.3731,2748.5,2746.4,3.0]
[1724442007280,9.3731,2748.5,2747.3,3.6399]
[1724442007479,4.24631024,2748.2,2746.8,9.0621]
[1724442007722,9.3731,2748.5,2746.8,9.0621]
[1724442007723,0.52463102,2748.0,2747.0,3.64032]
[1724442007931,9.3731,2748.5,2746.9,3.64043]
[1724442008185,9.3731,2748.5,2746.8,12.70265]
[1724442008344,9.3731,2748.5,2747.3,3.63983]
[1724442008645,15.01993175,2748.5,2746.9,3.55]
[1724442008854,15.01993175,2748.5,2747.4,3.63977]
[1724442009348,15.01993175,2748.5,2747.5,3.63966]
[1724442009789,5.64683175,2748.5,2747.6,3.63953]
[1724442010219,5.64683175,2748.5,2747.4,3.63978]
[1724442010549,6.64683175,2748.1,2747.1,3.64019]
[1724442010838,1.0,2748.1,2746.9,6.64042]
[1724442011135,1.0,2748.1,2747.2,3.64004]
[1724442011338,1.0,2748.1,2747.5,3.63966]
[1724442011496,1.0,2748.1,2747.3,3.63986]
[1724442011705,1.0,2748.1,2747.3,3.63993]
[1724442012597,1.0,2748.1,2747.1,3.64011]
[1724442012933,1.0,2748.1,2747.1,3.64017]
[1724442013246,1.0,2748.1,2747.4,3.63978]
[1724442013934,1.0,2748.1,2747.5,3.63965]
[1724442014139,1.0,2748.1,2747.4,3.63978]
[1724442014335,1.0,2748.1,2747.2,3.64003]
[1724442014523,1.0,2748.1,2747.2,3.64006]
[1724442014695,6.64683175,2748.1,2747.2,3.64006]
[1724442015095,6.64683175,2748.1,2747.3,3.63993]
[1724442015537,6.64683175,2748.1,2747.0,4.1903]
[1724442015773,6.64683175,2748.1,2747.1,6.64015]
[1724442015911,6.64683175,2748.1,2747.2,3.64006]
[1724442016958,6.64683175,2748.1,2747.3,3.63992]
[1724442019263,1.0,2748.1,2747.6,3.63945]
[1724442019465,1.0,2748.1,2747.8,3.63927]
[1724442019675,0.6804,2748.1,2747.9,0.363927]
[1724442019823,6.32723175,2748.1,2747.1,16.32697]
[1724442020365,6.32723175,2748.1,2747.2,3.64004]
[1724442020568,0.6804,2748.1,2747.2,3.64004]
[1724442020864,0.6804,2748.1,2747.4,3.63978]
[1724442021229,0.6804,2748.1,2747.2,0.07277113]
[1724442021230,0.03891146,2748.0,2747.2,0.07277113]
[1724442021426,0.6804,2748.1,2747.7,3.63931]
[1724442022275,0.6804,2748.1,2747.8,3.63925]
[1724442022428,0.04160311,2748.0,2747.7,3.6393]
[1724442022762,15.55473175,2748.9,2747.7,3.6393]
[1724442022970,5.64683175,2748.5,2747.4,3.0]
[1724442023262,5.64683175,2748.5,2747.3,3.0]
[1724442023673,5.64683175,2748.5,2747.4,3.63968]
[1724442023823,5.64683175,2748.5,2747.5,3.63963]
[1724442024420,5.64683175,2748.5,2747.3,3.0]
[1724442024624,3.0,2748.8,2747.3,3.0]
[1724442024625,5.64683175,2748.1,2747.3,3.0]
[1724442025018,9.1356,2748.0,2747.2,3.0]
[1724442025267,5.64683175,2747.7,2746.9,3.64046]
[1724442025471,5.64683175,2747.7,2746.7,3.6406]
[1724442026231,5.64683175,2747.7,2746.8,3.64059]
[1724442026432,4.29689792,2747.7,2746.7,3.6406]
[1724442026634,4.29689792,2747.7,2746.8,3.0]
[1724442026929,4.29689792,2747.7,2746.9,0.55]
[1724442027554,9.1356,2748.0,2746.9,4.19045]
[1724442028370,9.1356,2748.0,2746.9,0.55]
[1724442028545,9.1356,2748.0,2746.8,3.0]
[1724442028879,5.64683175,2747.7,2746.8,3.0]
[1724442029081,5.64683175,2747.7,2746.8,6.64054]
[1724442029230,9.1356,2748.0,2746.9,3.64046]
[1724442030335,9.1356,2748.0,2746.8,3.0]
[1724442030711,9.1356,2748.0,2746.8,6.64059]
[1724442030853,10.61384318,2748.0,2746.8,3.0]
[1724442031168,10.61384318,2748.0,2746.8,6.64058]
[1724442032571,10.61384318,2748.0,2746.9,3.64046]
[1724442034363,5.64683175,2747.7,2746.6,9.4643]
[1724442034597,5.64683175,2747.7,2746.7,3.0]
[1724442034823,6.21151493,2747.7,2746.7,3.0]
[1724442036419,0.56468318,2747.7,2746.7,6.64071]
[1724442036566,10.61384318,2748.0,2746.7,6.64071]
[1724442038270,10.61384318,2748.0,2746.8,3.64057]
[1724442039389,10.61384318,2748.0,2746.9,3.64046]
[1724442039803,10.61384318,2748.0,2746.7,10.28134]
[1724442040084,10.61384318,2748.0,2746.7,6.64063]
[1724442040401,1.62606749,2747.9,2746.7,6.64063]
[1724442040818,1.62606749,2747.9,2746.8,3.64057]
[1724442042027,1.62606749,2747.9,2746.8,3.6405]
[1724442042413,10.61384318,2748.0,2746.8,3.6405]
[1724442043318,9.1356,2748.0,2747.0,3.64032]
[1724442043692,9.1356,2748.0,2746.9,0.55]
[1724442043895,9.1356,2748.0,2746.7,3.0]
[1724442044121,5.64683175,2747.7,2746.7,3.0]
[1724442044322,9.4945,2747.6,2746.6,7.28153]
[1724442044622,9.4945,2747.6,2746.7,3.0]
[1724442049026,9.49054065,2747.6,2746.7,3.0]
[1724442049221,9.49054065,2747.6,2746.5,3.0]
[1724442050202,9.49054065,2747.6,2746.5,6.64097]
[1724442051123,9.49054065,2747.6,2746.6,2.02166556]
[1724442051421,9.49054065,2747.6,2746.7,1.26570495]
[1724442051625,9.49054065,2747.6,2746.7,4.26570495]
[1724442051839,9.49054065,2747.6,2746.7,3.0]
[1724442052340,9.49054065,2747.6,2747.1,0.75596061]
[1724442052640,9.49054065,2747.6,2747.2,3.1642491]
[1724442052850,9.49054065,2747.6,2747.1,0.75596061]
[1724442052851,9.49054065,2747.6,2747.3,1.26568679]
[1724442053140,9.49054065,2747.6,2747.1,0.75596061]
[1724442053447,9.49054065,2747.6,2747.2,3.16413798]
[1724442053739,9.49054065,2747.6,2747.1,0.75596061]
[1724442053957,9.49054065,2747.6,2747.2,3.164106]
[1724442054103,9.49054065,2747.6,2747.3,1.2656424]
[1724442054297,9.49054065,2747.6,2747.1,0.75596061]
[1724442054611,9.49054065,2747.6,2747.2,3.16401875]
[1724442054935,9.49054065,2747.6,2747.1,0.75596061]
[1724442055249,9.49054065,2747.6,2747.2,1.265636]
[1724442055445,9.49054065,2747.6,2747.0,0.75596061]
[1724442055599,9.49054065,2747.6,2747.1,3.5027992]
[1724442055798,9.49054065,2747.6,2747.2,3.16400891]
[1724442056014,9.49054065,2747.6,2747.3,1.26560356]
[1724442056209,9.49054065,2747.6,2747.1,0.75596061]
[1724442056463,9.49054065,2747.6,2747.2,3.16397027]
[1724442056746,4.2370756,2747.9,2746.9,1.67603069]
[1724442056747,13.4299756,2747.9,2747.1,1.09479711]
[1724442056946,13.4299756,2747.9,2747.2,3.16386411]
[1724442057097,13.4299756,2747.9,2747.3,1.26554564]
[1724442057304,13.4299756,2747.9,2747.2,0.33875195]
[1724442057646,13.4299756,2747.9,2747.1,0.75596061]
[1724442057844,13.4299756,2747.9,2746.9,5.31640069]
[1724442057845,13.4299756,2747.9,2747.2,1.26555772]
[1724442058148,13.4299756,2747.9,2747.1,1.89839814]
[1724442058440,13.4299756,2747.9,2746.9,0.75596061]
[1724442058640,13.4299756,2747.9,2747.0,3.50281934]
[1724442058799,13.4299756,2747.9,2747.0,0.33879716]
[1724442058996,13.4299756,2747.9,2747.1,1.2656199]
[1724442059247,13.4299756,2747.9,2747.0,2.23719765]
[1724442059445,13.4299756,2747.9,2747.0,1.89841656]
[1724442059647,13.4299756,2747.9,2747.1,1.26557856]
[1724442060445,13.4299756,2747.9,2747.0,1.89837664]
[1724442060756,13.4299756,2747.9,2747.0,1.60435453]
[1724442061043,13.4299756,2747.9,2746.9,2.23718849]
[1724442061345,13.4299756,2747.9,2746.9,0.33874296]
[1724442062111,13.4299756,2747.9,2746.8,5.8778041]
[1724442062812,13.4299756,2747.9,2746.9,1.26561414]
[1724442063247,13.4299756,2747.9,2746.8,0.33874296]
[1724442063398,13.4299756,2747.9,2746.7,10.28127]
[1724442063740,13.4299756,2747.9,2746.8,0.55]
[1724442065105,13.4299756,2747.9,2746.8,4.19057]
[1724442065321,13.4299756,2747.9,2746.9,3.64044]
[1724442066433,13.4299756,2747.9,2746.8,0.88874097]
[1724442066611,13.4299756,2747.9,2746.8,0.33874097]
[1724442066612,9.0224,2747.8,2746.8,0.33874097]
[1724442067407,9.0224,2747.8,2746.7,0.33874097]
[1724442067638,9.0224,2747.8,2746.8,0.33874097]
[1724442067948,9.0224,2747.8,2746.7,0.33874097]
[1724442068150,9.0224,2747.8,2746.8,1.60434474]
[1724442068452,9.0224,2747.8,2746.9,0.33874097]
[1724442068625,10.48264732,2747.8,2746.8,0.33874097]
[1724442068820,10.48264732,2747.8,2746.7,3.0]
[1724442068821,10.48264732,2747.8,2746.9,0.33874097]
[1724442069020,10.48264732,2747.8,2746.8,0.33874097]
[1724442069249,10.48264732,2747.8,2746.9,0.33874097]
[1724442069547,10.48264732,2747.8,2747.0,0.33874097]
[1724442069854,10.48264732,2747.8,2746.8,0.33874097]
[1724442070053,10.48264732,2747.8,2746.9,0.33874097]
[1724442070347,10.48264732,2747.8,2747.0,0.33874097]
[1724442070553,10.48264732,2747.8,2746.7,6.19634817]
[1724442070756,9.0224,2747.8,2746.8,0.33856307]
[1724442070913,9.0224,2747.8,2746.9,0.33856307]
[1724442071116,9.0224,2747.8,2747.0,0.33856307]
[1724442071318,9.0224,2747.8,2746.7,6.19634817]
[1724442071626,9.0224,2747.8,2746.8,1.60408296]
[1724442071949,1.32594756,2747.7,2746.9,1.60408296]
[1724442072152,1.32594756,2747.7,2747.0,0.33848105]
[1724442072351,1.32594756,2747.7,2746.7,6.19634817]
[1724442072559,9.0224,2747.8,2746.8,1.60404925]
[1724442072855,9.0224,2747.8,2746.7,6.19634817]
[1724442072856,9.0224,2747.8,2746.9,1.60404925]
[1724442073063,9.0224,2747.8,2747.0,0.33844502]
[1724442073353,9.0224,2747.8,2746.7,9.83706817]
[1724442073567,9.0224,2747.8,2746.8,1.60407524]
[1724442073871,9.0224,2747.8,2747.0,13.32724]
[1724442074075,9.0224,2747.8,2747.1,0.33845652]
[1724442074220,9.0224,2747.8,2746.9,9.72909486]
[1724442074413,9.0224,2747.8,2747.0,1.60399242]
[1724442074618,9.0224,2747.8,2747.1,0.33841585]
[1724442074849,9.0224,2747.8,2746.9,6.08077042]
[1724442075065,13.2594756,2747.8,2747.0,1.60402302]
[1724442075261,9.2624,2747.2,2746.4,0.16928212]
[1724442075475,9.2624,2747.2,2746.5,1.60443558]
[1724442075630,9.2624,2747.2,2746.6,0.33862878]
[1724442075837,9.2624,2747.2,2746.7,0.33862878]
[1724442076059,9.2624,2747.2,2746.5,3.64092]
[1724442076229,9.2624,2747.2,2746.6,3.97947514]
[1724442076579,9.1055,2747.6,2746.7,3.64064]
[1724442076718,9.1055,2747.6,2746.7,3.97924594]
[1724442076921,9.1055,2747.6,2746.8,0.33860215]
[1724442077151,9.1055,2747.6,2746.7,0.33860594]
[1724442077668,9.1055,2747.6,2746.8,0.33864253]
[1724442077872,9.1055,2747.6,2746.7,0.33860594]
[1724442078036,3.63895,2748.1,2746.8,0.33859737]
[1724442078037,4.2370756,2748.1,2746.8,0.33859737]
[1724442078248,9.1055,2748.0,2747.1,3.64019]
[1724442078776,9.1055,2748.0,2747.2,0.33846595]
[1724442079073,9.1055,2748.4,2747.3,0.33838215]
[1724442079375,9.1055,2748.4,2747.4,0.88838215]
[1724442079520,9.1055,2748.4,2747.4,4.18979]
[1724442079735,9.1055,2748.4,2747.5,1.26523875]
[1724442080137,9.1055,2748.4,2747.4,4.18979]
[1724442080377,9.1055,2748.4,2747.4,0.55]
[1724442083430,9.1055,2748.4,2747.3,3.0]
[1724442084595,9.8683,2748.3,2746.9,10.54236061]
[1724442084804,9.8683,2748.2,2747.0,4.26544672]
[1724442085007,9.8683,2748.0,2747.0,3.0]
[1724442085854,9.8683,2748.0,2747.1,0.55]
[1724442086050,9.8683,2748.0,2747.0,3.0]